Cogmind - Beta 11 X5 @@@ ROGUE MODE // 2021.06.07 @ 17:27:39 Player: rusmal Result: Destroyed self with Grenade Launcher Performance ------------- Evolutions (0) 0 Regions Visited (3) 600 Robots Destroyed (30) 150 Value Destroyed (963) 963 Prototype IDs (3) 60 Alien Tech Used (0) 0 Bonus (0) 0 TOTAL SCORE: 1773 Bonus ------- None Cogmind --------- Core Integrity 0/250 Matter 129/300 Energy 160/160 System Corruption 5% Temperature Cool (0) Movement Rolling (110) Ox2 Location -10/Exiles Parts ------- > --- POWER (1) -------- Light Nuclear Core > --- PROPULSION (2) --- Light Treads Wheel > --- UTILITY (2) ------ Large Storage Unit Propulsion Shielding > --- WEAPON (2) ------- Light Assault Rifle > --- INVENTORY (15) --- Ion Engine Aluminum Leg Aluminum Leg Aluminum Leg Aluminum Leg Aluminum Leg Compact Wheel Improved Heat Sink Large Storage Unit High-capacity Matter Pod (28) Medium Laser Small Laser Light Assault Rifle Light Assault Rifle Rocket Launcher Peak State ------------ > --- POWER ------------ Light Nuclear Core > --- PROPULSION ------- Light Treads Light Treads > --- UTILITY ---------- Improved Heat Sink Large Storage Unit > --- WEAPON ----------- Small Laser Small Laser > --- INVENTORY -------- Ion Engine Aluminum Leg Aluminum Leg Aluminum Leg Aluminum Leg Wheel Compact Wheel Heat Sink Large Storage Unit Propulsion Shielding Light Armor Plating Small Laser Grenade Launcher [Rating: 12] Favorites ----------- Power Light Nuclear Core Engine Ion Engine Power Core Light Nuclear Core Propulsion Light Treads Treads Light Treads Leg Aluminum Leg Wheel Wheel Utility Large Storage Unit Device Improved Heat Sink Storage Large Storage Unit Protection Propulsion Shielding Weapon Small Laser Energy Gun Small Laser Ballistic Gun Light Assault Rifle Launcher Grenade Launcher Build | -11 -10 -10 -10 ------- Run | Scr Mat Min Exi Slots Evolved . | . . . . Power . | . . . . Propulsion . | . . . . Utility . | . . . . Weapon . | . . . . Parts Attached 35 | 6 26 3 . Power 6 | 1 4 1 . Engine 4 | 1 3 . . Core 2 | . 1 1 . Reactor . | . . . . Propulsion 12 | 2 10 . . Treads 6 | 1 5 . . Leg 2 | . 2 . . Wheel 4 | 1 3 . . Hover . | . . . . Flight . | . . . . Utility 7 | 1 4 2 . Device 2 | . 2 . . Storage 2 | 1 1 . . Processor . | . . . . Hackware . | . . . . Protection 3 | . 1 2 . Artifact . | . . . . Weapon 10 | 2 8 . . Energy Gun 7 | 2 5 . . Energy Cannon . | . . . . Ballistic Gun 2 | . 2 . . Ballistic Cannon . | . . . . Launcher 1 | . 1 . . Special Weapon . | . . . . Impact Weapon . | . . . . Slashing Weapon . | . . . . Piercing Weapon . | . . . . Special Melee Weapon . | . . . . Unidentified Prototypes . | . . . . Parts Lost 7 | . 5 1 1 Power . | . . . . Propulsion 3 | . 3 . . Utility 1 | . . 1 . Weapon 3 | . 2 . 1 Highest Loss Streak 2 | . 2 1 1 Average Slot Usage (%) 98 | . 99 98 100 Engine 6 | . 7 3 . Core 7 | . 6 10 14 Treads 15 | . 15 14 14 Leg 3 | . 4 . . Wheel 9 | . 7 14 14 Device 9 | . 12 3 . Storage 14 | . 14 14 14 Protection 4 | . 1 9 14 Energy Gun 15 | . 23 . . Ballistic Gun 7 | . 4 14 14 Launcher 4 | . . 14 14 Naked Turns . | . . . . Heaviest Build 32 | 13 30 32 30 Greatest Support 40 | 20 40 10 10 Greatest Overweight (x) 3 | . 2 3 2 Average Overweight (x) 1 | . 1 2 2 Largest Inventory Capacity 15 | 8 15 15 15 Average Capacity 13 | 6 13 15 15 Most Carried 15 | 6 15 15 15 Average Carried 11 | 3 10 14 15 Final Capacity 15 | 8 15 15 15 Final Carried 15 | 6 15 15 15 Class Distribution -------------------- 89% | Mutant 10% | Scavenger-Mutant Dominant Class ---------------- Mutant | -10/Materials Mutant | -10/Mines Mutant | -10/Exiles Resources | -11 -10 -10 -10 ----------- Run | Scr Mat Min Exi Matter Collected 694 | 216 319 159 . Remotely . | . . . . Salvage Created 958 | . 701 257 . Parts 59 | . 42 17 . Haulers Intercepted 1 | . 1 . . Recyclers Shooed . | . . . . Parts Field Recycled . | . . . . Retrieved Matter . | . . . . Parts Self-Destructed . | . . . . Prevented . | . . . . Kills | -11 -10 -10 -10 ------- Run | Scr Mat Min Exi Combat Hostiles Destroyed 28 | . 15 13 . Guns 14 | . 14 . . AOE 14 | . 1 13 . Classes Destroyed 6 | . 4 2 . Builder 2 | . 1 1 . Tunneler 1 | . . 1 . Hauler 1 | . 1 . . Operator 1 | . 1 . . Grunt 25 | . 15 10 . Assembled 3 | . . 3 . Best Kill Streak 9 | . 2 9 . Combat Bots Only 7 | . 2 7 . Max Kills in Single Turn 2 | . 1 2 . Gunslinging . | . . . . Exploded 2 | . 1 2 . Melee . | . . . . Uniques/NPCs Destroyed . | . . . . Combat | -11 -10 -10 -10 -------- Run | Scr Mat Min Exi Damage Taken 1268 | . 969 291 8 Core 251 | . 230 17 4 Absorbed by Shields . | . . . . Core Remaining (%) 100 | 100 . . . Volleys Fired 113 | . 85 28 . Largest 2 | . 2 1 . Hottest 90 | . 90 30 . Shots Fired 191 | . 162 28 1 Gun 162 | . 162 . . Cannon . | . . . . Launcher 29 | . . 28 1 Special . | . . . . Kinetic 12 | . 12 . . Thermal 125 | . 125 . . Explosive 29 | . . 28 1 Electromagnetic 25 | . 25 . . Robot Hit Streak 13 | . 13 4 . Robot Miss Streak 5 | . 5 2 . Penetration Max . | . . . . Secondary Targets . | . . . . Shots Hit Robots 120 | . 116 4 . Core Hits 81 | . 41 40 . Critical Kills . | . . . . Critical Parts Destroyed . | . . . . Critical Strikes 1 | . 1 . . Burn 1 | . 1 . . Melee Attacks . | . . . . Impact . | . . . . Slashing . | . . . . Piercing . | . . . . Sneak Attacks . | . . . . Combat Hostiles . | . . . . Follow-up Attacks . | . . . . Damage Inflicted 2374 | . 1294 1080 . Guns 1199 | . 1199 . . Cannons . | . . . . Explosions 1175 | . 95 1080 . Melee . | . . . . Ramming . | . . . . Kinetic 87 | . 87 . . Thermal 990 | . 990 . . Explosive 1080 | . . 1080 . Electromagnetic 217 | . 217 . . Impact . | . . . . Slashing . | . . . . Piercing . | . . . . Highest Corruption 5 | . . 5 5 Average Corruption 5 | . . 5 5 Corruption Purged . | . . . . Effects 7 | . . 6 1 Message Errors 2 | . . 2 . Matter Fused 1 | . . 1 . Heat Flow Errors 2 | . . 2 . Energy Discharges 1 | . . 1 . Misfires 1 | . . . 1 Overload Shots . | . . . . Overflow Damage 26 | . 19 7 . Projectiles . | . . . . Explosions 26 | . 19 7 . Melee . | . . . . Knockbacks . | . . . . Impact . | . . . . Kinetic . | . . . . Secondary . | . . . . Self-Inflicted Damage 205 | . 91 100 14 Shots 6 | . 2 3 1 Rammed . | . . . . Targets Rammed . | . . . . Kicked . | . . . . Crushed . | . . . . Highest Temperature 338 | . 338 197 . Average Temperature 70 | . 72 64 . Received Heat Transfer 561 | . 489 72 . Siege Activations . | . . . . Robots Corrupted . | . . . . Combat Hostiles . | . . . . Parts Fried . | . . . . Impact Corruptions . | . . . . Robots Melted . | . . . . Combat Hostiles . | . . . . Parts Melted 2 | . 2 . . Heat Transferred 2392 | . 2392 . . Parts Sabotaged . | . . . . Parts Stolen . | . . . . Parts Stripped . | . . . . Power Chain Reactions 2 | . 2 . . Missiles Intercepted . | . . . . Alert | -11 -10 -10 -10 ------- Run | Scr Mat Min Exi Peak Influence 241 | . 241 198 . Initial 53 | . . 53 . Average 115 | . 130 103 . Maximum Alert Level 1 | . 1 . . Low Security (%) 88 | 100 83 100 . Level 1 11 | . 16 . . Level 2 . | . . . . Level 3 . | . . . . Level 4 . | . . . . Level 5 . | . . . . High Security . | . . . . Max Security . | . . . . Squads Dispatched 4 | . 4 . . Investigation . | . . . . Extermination . | . . . . Reinforcement 4 | . 4 . . Assault . | . . . . Garrison . | . . . . Intercept . | . . . . Construction Impeded . | . . . . Haulers Reinforced . | . . . . Cargo Convoy Interrupts . | . . . . Stealth | -11 -10 -10 -10 --------- Run | Scr Mat Min Exi Distress Signals 2 | . 2 . . Communications Jammed . | . . . . Distress Signals . | . . . . Times Spotted 52 | . 38 14 . Peak Tracking Total 4 | . 4 4 . Tactical Retreats 1 | . . 1 . Traps | -11 -10 -10 -10 ------- Run | Scr Mat Min Exi Traps Triggered 2 | . 2 . . Indirectly . | . . . . Trap Hack Attempts . | . . . . Triggered . | . . . . Disarmed . | . . . . Reprogrammed . | . . . . Reused . | . . . . Traps Extracted . | . . . . Installed . | . . . . Triggered . | . . . . Machines | -11 -10 -10 -10 ---------- Run | Scr Mat Min Exi Machines Disabled . | . . . . Max in Single Turn . | . . . . Machines Sabotaged . | . . . . Garrisons Compromised . | . . . . Overloaded Fab Kills . | . . . . Fab Network Shutdowns . | . . . . Hacking | -11 -10 -10 -10 --------- Run | Scr Mat Min Exi Machines Accessed 4 | . 4 . . Terminals 4 | . 4 . . Fabricators . | . . . . Repair Stations . | . . . . Recycling Units . | . . . . Scanalyzers . | . . . . Garrison Access . | . . . . Total Hacks 14 | . 14 . . Successful 7 | . 7 . . Failed 7 | . 7 . . Catastrophic 1 | . 1 . . Database Lockouts . | . . . . Manual 8 | . 8 . . Terminals 14 | . 14 . . Fabricators . | . . . . Repair Stations . | . . . . Recycling Units . | . . . . Scanalyzers . | . . . . Garrison Access . | . . . . Terminal Hacks 3 | . 3 . . Prototype ID Bank 2 | . 2 . . Hauler Manifests 1 | . 1 . . Fabricator Hacks . | . . . . Repair Station Hacks . | . . . . Recycling Unit Hacks . | . . . . Scanalyzer . | . . . . Garrison Access Hacks . | . . . . Unauthorized Hacks 4 | . 4 . . Terminals 4 | . 4 . . Botnet 2 | . 2 . . Operators 2 | . 2 . . Fabricators . | . . . . Repair Stations . | . . . . Recycling Units . | . . . . Scanalyzers . | . . . . Garrison Access . | . . . . Data Cores Recovered . | . . . . Used . | . . . . Hacking Detections 4 | . 4 . . Full Trace Events . | . . . . Feedback Events . | . . . . Feedback Blocked . | . . . . Robot Schematics Acquired . | . . . . Robots Built . | . . . . Matter . | . . . . Time . | . . . . Total Robot Build Rating . | . . . . Part Schematics Acquired . | . . . . Parts Built . | . . . . Matter . | . . . . Time . | . . . . Total Part Build Rating . | . . . . Parts Repaired . | . . . . Time . | . . . . Parts Recycled . | . . . . Recycled Matter . | . . . . Retrieved Matter . | . . . . Retrieved Components . | . . . . Parts Scanalyzed . | . . . . Part Schematics Acquired . | . . . . Parts Damaged . | . . . . Bothacking | -11 -10 -10 -10 ------------ Run | Scr Mat Min Exi Used RIF Installer . | . . . . Robots Hacked . | . . . . Non-combat . | . . . . Combat . | . . . . Robot Hacks Applied . | . . . . Relay Couplers Released . | . . . . Robots Rewired . | . . . . Allies Hacked . | . . . . Hacks Repelled . | . . . . Allies | -11 -10 -10 -10 -------- Run | Scr Mat Min Exi Total Allies . | . . . . Largest Group . | . . . . Highest-Rated Group . | . . . . Highest-Rated Ally . | . . . . Total Orders . | . . . . Ally Attacks . | . . . . Total Damage . | . . . . Kills . | . . . . Allies Corrupted . | . . . . Allies Melted . | . . . . Intel | -11 -10 -10 -10 ------- Run | Scr Mat Min Exi Robot Analysis Total . | . . . . Derelict Logs Recovered 1 | . . 1 . Drone Launches . | . . . . Drone Recoveries . | . . . . Exploration | -11 -10 -10 -10 ------------- Run | Scr Mat Min Exi Turns Passed 1707 | 93 1114 484 16 Spaces Moved 964 | 59 535 356 14 Core 10 | 10 . . . Treads 138 | 43 95 . . Legs 50 | . 50 . . Wheels 766 | 6 390 356 14 Hover . | . . . . Flight . | . . . . Fastest Speed 50 | 50 95 110 110 Average Speed 130 | 133 140 114 110 Slowest Speed 280 | 160 280 125 110 Overloaded Moves . | . . . . Propulsion Burnouts . | . . . . Robots Hopped . | . . . . Cave-ins Triggered . | . . . . Exploration Rate (%) 40 | 4 80 69 7 Regions Visited 3 Branch Regions 2 Pre-discovered Areas 1 | . . 1 . Known Exits Taken . | . . . . Unknown Exits Taken 3 | 1 1 1 . Scrap Searched 1 | . . 1 . Spaces Dug 5 | . . 5 . Terrain Destroyed 117 | . 6 107 4 Melee . | . . . . Projectile . | . . . . AOE 117 | . 6 107 4 Terrain Rammed . | . . . . Walls Destroyed . | . . . . Machines Disabled . | . . . . Actions | -11 -10 -10 -10 --------- Run | Scr Mat Min Exi Total 1221 | 71 731 405 14 Wait 77 | . 62 15 . Move 961 | 58 534 355 14 Hop . | . . . . Pick Up 20 | 7 11 2 . Fast Attach 20 | 5 14 1 . Attach 6 | 1 4 1 . Detach 6 | . 6 . . Swap 9 | . 8 1 . Drop 9 | . 7 2 . Fire 113 | . 85 28 . Melee . | . . . . Ram . | . . . . Kick . | . . . . Crush . | . . . . Escape Stasis . | . . . . Rewire . | . . . . Trap . | . . . . Miscellaneous . | . . . . Route ------- -11/Scrapyard -10/Materials (discovered 2 exits: [*Mat] / [*Min]) -10/Mines (discovered 2 exits: [*Mat] / [*Exi]) -10/Exiles History --------- Turn | Location | Event 11 | -11/Scrapyard | Discovered new exit (range 15) 94 | -11/Scrapyard | Entered Materials 324 | -10/Materials | Build established: Mutant 443 | -10/Materials | Discovered new exit (range 3) 450 | -10/Materials | Core integrity fell below 50% 625 | -10/Materials | Core integrity fell below 20% 1074 | -10/Materials | Discovered new exit (range 13) 1208 | -10/Materials | Entered Mines 1305 | -10/Mines | Learned location of Zion (-7) 1467 | -10/Mines | Excavation squad dispatched 1467 | -10/Mines | A large section of the Mines collapsed 1538 | -10/Mines | Received a Rocket Launcher from a helpful Derelict 1546 | -10/Mines | Destroyed 7 combat bots 1680 | -10/Mines | Discovered new exit (range 10) 1688 | -10/Mines | Deemed a non-threat by the Exiles lab entrance 1688 | -10/Mines | Discovered new exit (range 5) 1692 | -10/Mines | Entered Exiles 1708 | -10/Exiles | Destroyed self with Grenade Launcher Last Messages --------------- 01642_ Destroyed Heat Sink. 01644_ G-34 Mercenary destroyed. 01651_ JKLJ=9W FZ# <>>|C6I: 01652_ The unstable cave ceiling collapses. 01656_ G-47 Trooper destroyed. 01656_ G-34 Mercenary destroyed. 01665_ Acquired 38 matter. 01666_ The unstable cave ceiling collapses. 01666_ Acquired 34 matter. 01668_ DO%UF5R2 3MONHMT5Y > 01680_ EXIT=FOUND 01683_ System corrupted: Matter fused (-10). 01688_ "No threat detected, you may enter." 01688_ EXIT=FOUND LOCATION=UNKNOWN GOAL=ESCAPE 01708_ System corrupted: FCS attempts to trigger Grenade Launcher. 01708_ System corrupted: Grenade Launcher misfires. 01708_ Grenade Launcher destroyed. 01708_ Destroyed Grenade Launcher. Map ----- +----------------------------------------------------+ | ????????????????????????????????????????????????? | | ????????????????????????????????????????????????? | | ????????????????????????????????????????????????? | | ????????????????????????????????????????????????? | | ????????????????????????????????????????????????? | | ????????????????????????????????????????????????? | | ????????????????????????????????????????????????? | | ????????????????????????????????????????????????? | | ????????????????????????????????????????????????? | | ????????????????????????????????????????????????? | | ??????????????????????????? ????????????????????? | | ??????????????????????????? ??????????????????? | | ??????????????????????????? ?????????????????? | | ??????????????????????????# #?????????????????? | | ????????????????????????## #?????????????????? | | ????????????????????????# ?????????????????? | | ????????????????????????# ??????????????????? | | ???????????????????????## ??????????????????? | | ??????????????????????## #??????????????????? | | ??????????????????????# #??????????????????? | | ????????????????????### #??????????????????? | | ??????????????????### ???????????????????? | | ??????????? #""""## #???????????????????? | | ?????????? * #???????????????????? | | ?????????? * #???????????????????? | | ?????????? @ ##??????????????????? | | ???????????????# ###????????????????? | | ???????????????#### * ###??????????????? | | ??????????????????##### ##?????????????? | | ??????????????????????### #?????????????? | | ????????????????????????### #?????????????? | | ??????????????????????????### #?????????????? | | ???????????????????????????#" ##????????????? | | ???????????????????????????#### ###??????????? | | ??????????????????????????????# ##?????????? | | ??????????????????????????????## ###???????? | | ???????????????????????????????### #???????? | | ?????????????????????????????????# ##???????? | | ?????????????????????????????????## ##????????? | | ??????????????????????????????????#####?????????? | | ????????????????????????????????????????????????? | | ????????????????????????????????????????????????? | | ????????????????????????????????????????????????? | | ????????????????????????????????????????????????? | | ????????????????????????????????????????????????? | | ????????????????????????????????????????????????? | | ????????????????????????????????????????????????? | | ????????????????????????????????????????????????? | | ????????????????????????????????????????????????? | | ????????????????????????????????????????????????? | +----------------------------------------------------+ Best States ------------- Heat Dissipation 39 Energy Generation 14 Energy Capacity 250 Matter Stores 300 Matter Capacity 300 Sight Range 16 Terrain Scan Density 10 Armor Coverage 150 Propulsion Shielding 33 Evasion (%) 44 Recoil Reduction 2 Item Schematics ----------------- None Robot Schematics ------------------ None Fabricated ------------ Nothing Alien Tech Used ----------------- None Achievements -------------- None Challenges ------------ None Game ------ Seed SalvageInsulatedLog Manual? 0 Play Time 00:13:04 Cumulative 60.6 hours Start 2021.06.07 @ 17:12:41 End 2021.06.07 @ 17:27:39 Sessions 1 Manual Loads 0 Difficulty Rogue Special Mode None Game No. 60 Rogue 60 Adventurer 0 Explorer 0 Win Type - Total 1 Types 1/0/0/0/0/0/0/0/0 Lore% 47 Gallery% 50 Achievement% 41 Wizard Run 0 Options --------- ASCII 1 Keyboard 1 Movement Numpad Keybinds 0 Fullscreen 2 Font 18/SmallcapsGlow Map View 76x50 Tactical HUD 1 Map Filters NONE Filters NONE Steam 1 RUN: 6ded7b08-b51b-4730-8d8a-c3f1b2e1e61f